fUST/lending_fUST_20240619
["ID","MTS","AMOUNT","RATE_DAILY","PERIOD"]
[329876666,1718781045591,-500.0,0.00016986,2]
[329876667,1718781045601,-435.28869484,0.00016986,2]
[329876668,1718781045611,-500.0,0.00016986,2]
[329876669,1718781045756,-500.0,0.00016986,2]
[329876670,1718781045772,-500.0,0.00016986,2]
[329876672,1718781045781,-500.0,0.00016986,2]
[329876674,1718781045791,-500.0,0.00016986,2]
[329876676,1718781045801,-500.0,0.00016986,2]
[329876677,1718781045811,-159.50908249,0.00016986,2]
[329876678,1718781045820,-500.0,0.00016986,2]
[329876679,1718781045829,-500.0,0.00016986,2]
[329876680,1718781045839,-500.0,0.00016986,2]
[329876681,1718781045848,-500.0,0.00016986,2]
[329876682,1718781045857,-500.0,0.00016986,2]
[329876683,1718781045867,-500.0,0.00016986,2]
[329876684,1718781045876,-500.0,0.00016986,2]
[329876685,1718781045886,-500.0,0.00016986,2]
[329876686,1718781045895,-500.0,0.00016986,2]
[329876687,1718781045904,-500.0,0.00016986,2]
[329876688,1718781045914,-454.70882826,0.00016986,2]
[329876689,1718781045923,-500.0,0.00016986,2]
[329876690,1718781045934,-500.0,0.00016986,2]
[329876691,1718781045943,-500.0,0.00016986,2]
[329876692,1718781045952,-500.0,0.00016986,2]
[329876693,1718781045960,-500.0,0.00016986,2]
[329876694,1718781045969,-500.0,0.00016986,2]
[329876695,1718781045978,-500.0,0.00016986,2]
[329876696,1718781045988,-500.0,0.00016986,2]
[329876697,1718781045998,-506.17326596,0.00016986,2]
[329876698,1718781046007,-3485.48,0.00016986,2]
[329876699,1718781046016,-500.0,0.00016986,2]
[329876700,1718781046026,-500.0,0.00016986,2]
[329876701,1718781046036,-3509.05,0.00016986,2]
[329876702,1718781046046,-500.0,0.00016986,2]
[329876703,1718781046055,-500.0,0.00016986,2]
[329876704,1718781046064,-500.0,0.00016986,2]
[329876705,1718781046074,-500.0,0.00016986,2]
[329876706,1718781046083,-1335.38,0.00016986,2]
[329876707,1718781046093,-500.0,0.00016986,2]
[329876708,1718781046102,-813.43,0.00016986,2]
[329876709,1718781046111,-500.0,0.00016986,2]
[329876710,1718781046120,-500.0,0.00016986,2]
[329876711,1718781046130,-500.0,0.00016986,2]
[329876712,1718781046139,-527.95727625,0.00016986,2]
[329876713,1718781046150,-500.0,0.00016986,2]
[329876714,1718781046159,-929.38,0.00016986,2]
[329876715,1718781046168,-500.0,0.00016986,2]
[329876716,1718781046180,-500.0,0.00016986,2]
[329876718,1718781046189,-500.0,0.00016986,2]
[329876720,1718781046198,-500.0,0.00016986,2]
[329876721,1718781046207,-506.70484761,0.00016986,2]
[329876723,1718781046216,-5872.42,0.00016986,2]
[329876725,1718781046225,-500.54059779,0.00016986,2]
[329876727,1718781046234,-500.0,0.00016986,2]
[329876729,1718781046244,-500.0,0.00016986,2]
[329876731,1718781046253,-867.63,0.00016986,2]
[329876733,1718781046263,-171.615808,0.00016986,2]
[329876735,1718781046272,-171.615808,0.00016986,2]
[329876737,1718781046282,-500.0,0.00016986,2]
[329876739,1718781046291,-171.615808,0.00016986,2]
[329876740,1718781046300,-171.615808,0.00016986,2]
[329876741,1718781046310,-500.0,0.00016986,2]
[329876742,1718781046319,-500.0,0.00016986,2]
[329876743,1718781046328,-151.0,0.00016986,2]
[329876744,1718781046338,-500.0,0.00016986,2]
[329876746,1718781046347,-151.0,0.00016986,2]
[329876747,1718781046357,-500.0,0.00016986,2]
[329876749,1718781046366,-500.0,0.00016986,2]
[329876751,1718781046375,-500.0,0.00016986,2]
[329876753,1718781046385,-500.0,0.00016986,2]
[329876755,1718781046394,-500.0,0.00016986,2]
[329876757,1718781046404,-500.0,0.00016986,2]
[329876759,1718781046414,-500.0,0.00016986,2]
[329876761,1718781046423,-151.0,0.00016986,2]
[329876763,1718781046435,-151.0,0.00016986,2]
[329876765,1718781046445,-924.11,0.00016986,2]
[329876767,1718781046454,-231.868287,0.00016986,2]
[329876769,1718781046464,-500.0,0.00016986,2]
[329876771,1718781046473,-2674.52,0.00016986,2]
[329876773,1718781046483,-1000.0,0.00017,17]
[329876775,1718781046492,-150.363,0.00017056,2]
[329876777,1718781046501,-150.0,0.00017056,2]
[329876779,1718781046510,-500.0,0.00017056,2]
[329876781,1718781046520,-151.064,0.00017056,2]
[329876783,1718781046530,-500.0,0.00017259,2]
[329876785,1718781046539,-500.0,0.00017259,2]
[329876787,1718781046548,-500.0,0.0001726,2]
[329876788,1718781046557,-500.0,0.0001726,2]
[329876790,1718781046567,-500.0,0.0001726,2]
[329876792,1718781046580,-500.0,0.0001726,2]
[329876794,1718781046590,-500.0,0.0001726,2]
[329876796,1718781046599,-500.0,0.0001726,2]
[329876797,1718781046610,-500.0,0.0001726,2]
[329876798,1718781046619,-392.36626128,0.0001726,2]
[329876799,1718781046628,-500.0,0.0001726,2]
[329876800,1718781046638,-528.19416708,0.0001726,2]
[329876801,1718781046647,-500.0,0.0001726,2]
[329876802,1718781046658,-500.0,0.0001726,2]
[329876803,1718781046669,-500.0,0.0001726,2]
[329876804,1718781046679,-500.0,0.0001726,2]
[329876805,1718781046689,-500.0,0.0001726,2]
[329876806,1718781046699,-500.0,0.0001726,2]
[329876807,1718781046708,-500.0,0.0001726,2]
[329876808,1718781046717,-500.0,0.0001726,2]
[329876809,1718781046727,-531.38963906,0.0001726,2]
[329876810,1718781046736,-603.11875781,0.0001726,2]
[329876811,1718781046746,-500.0,0.0001726,2]
[329876812,1718781046755,-500.0,0.0001726,2]
[329876813,1718781046764,-3485.48,0.0001726,2]
[329876814,1718781046774,-500.0,0.0001726,2]
[329876815,1718781046783,-271.35427463,0.0001726,2]
[329876816,1718781046793,-3509.05,0.0001726,2]
[329876817,1718781046802,-500.0,0.0001726,2]
[329876818,1718781046812,-500.0,0.0001726,2]
[329876819,1718781046821,-500.0,0.0001726,2]
[329876820,1718781046830,-500.0,0.0001726,2]
[329876821,1718781046840,-1335.38,0.0001726,2]
[329876822,1718781046849,-500.0,0.0001726,2]
[329876823,1718781046859,-813.43,0.0001726,2]
[329876824,1718781046869,-500.0,0.0001726,2]
[329876825,1718781046879,-250.99770689,0.0001726,2]
[329876826,1718781046888,-500.0,0.0001726,2]
[329876827,1718781046897,-500.0,0.0001726,2]
[329876828,1718781046906,-929.38,0.0001726,2]
[329876829,1718781046915,-500.0,0.0001726,2]
[329876830,1718781046924,-500.0,0.0001726,2]
[329876831,1718781046935,-500.0,0.0001726,2]
[329876832,1718781046944,-176.22579761,0.0001726,2]
[329876833,1718781046953,-5872.42,0.0001726,2]
[329876834,1718781046962,-500.0,0.0001726,2]
[329876835,1718781046972,-500.0,0.0001726,2]
[329876836,1718781046982,-867.63,0.0001726,2]
[329876837,1718781046991,-171.615808,0.0001726,2]
[329876838,1718781047001,-500.0,0.0001726,2]
[329876839,1718781047010,-171.615808,0.0001726,2]
[329876840,1718781047019,-500.0,0.0001726,2]
[329876841,1718781047028,-500.0,0.0001726,2]
[329876842,1718781047037,-151.0,0.0001726,2]
[329876843,1718781047046,-500.0,0.0001726,2]
[329876844,1718781047056,-500.0,0.0001726,2]
[329876845,1718781047065,-500.0,0.0001726,2]
[329876846,1718781047074,-500.0,0.0001726,2]
[329876847,1718781047083,-500.0,0.0001726,2]
[329876848,1718781047092,-500.0,0.0001726,2]
[329876849,1718781047102,-500.0,0.0001726,2]
[329876850,1718781047111,-151.0,0.0001726,2]
[329876851,1718781047121,-924.11,0.0001726,2]
[329876852,1718781047130,-500.0,0.0001726,2]
[329876853,1718781047139,-2674.52,0.0001726,2]
[329876854,1718781047147,-177.0,0.0001742,2]
[329876855,1718781047156,-177.0,0.0001742,2]
[329876856,1718781047166,-177.0,0.0001742,2]
[329876857,1718781047175,-177.0,0.0001742,2]
[329876858,1718781047185,-177.0,0.0001742,2]
[329876859,1718781047194,-177.0,0.0001742,2]
[329876860,1718781047203,-177.0,0.0001742,2]
[329876861,1718781047212,-177.0,0.0001742,2]
[329876862,1718781047221,-177.0,0.0001742,2]
[329876863,1718781047230,-177.0,0.0001742,2]
[329876864,1718781047239,-177.0,0.0001742,2]
[329876865,1718781047248,-177.0,0.0001742,2]
[329876866,1718781047257,-177.0,0.0001742,2]
[329876867,1718781047266,-177.0,0.0001742,2]
[329876868,1718781047275,-177.0,0.0001742,2]
[329876869,1718781047284,-177.0,0.0001742,2]
[329876870,1718781047293,-177.0,0.0001742,2]
[329876871,1718781047301,-177.0,0.0001742,2]
[329876872,1718781047310,-177.0,0.0001742,2]
[329876873,1718781047319,-177.0,0.0001742,2]
[329876874,1718781047328,-177.0,0.0001742,2]
[329876875,1718781047337,-177.0,0.0001742,2]
[329876876,1718781047346,-177.0,0.0001742,2]
[329876877,1718781047355,-177.0,0.0001742,2]
[329876878,1718781047364,-177.0,0.0001742,2]
[329876879,1718781047373,-177.0,0.0001742,2]
[329876880,1718781047382,-177.0,0.0001742,2]
[329876881,1718781047391,-177.0,0.0001742,2]
[329876882,1718781047400,-177.0,0.0001742,2]
[329876883,1718781047409,-177.0,0.0001742,2]
[329876884,1718781047418,-177.0,0.0001742,2]
[329876885,1718781047429,-177.0,0.0001742,2]
[329876886,1718781047439,-177.0,0.0001742,2]
[329876887,1718781047448,-177.0,0.0001742,2]
[329876888,1718781047458,-177.0,0.0001742,2]
[329876889,1718781047468,-177.0,0.0001742,2]
[329876890,1718781047477,-177.0,0.0001742,2]
[329876891,1718781047488,-177.0,0.0001742,2]
[329876892,1718781047498,-177.0,0.0001742,2]
[329876893,1718781047508,-177.0,0.0001742,2]
[329876894,1718781047518,-177.0,0.0001742,2]
[329876895,1718781047528,-177.0,0.0001742,2]
[329876896,1718781047538,-500.0,0.00017499,2]
[329876897,1718781047548,-500.0,0.00017499,2]
[329876898,1718781047557,-500.0,0.00017499,2]
[329876899,1718781047572,-500.0,0.00017499,2]
[329876900,1718781047581,-500.0,0.00017499,2]
[329876901,1718781047591,-11835.70393993,0.000175,2]
[329876902,1718781047791,-0.00461758,0.000175,2]
[329876903,1718781047803,-3930.79403824,0.000175,2]
[329877372,1718782045136,-715.56225487,0.00015202,2]
[329877373,1718782048173,-200.94777824,0.00015202,2]
[329877402,1718782125873,-290.0,0.00024167,35]
[329877403,1718782125898,-290.0,0.00024177,35]
[329877404,1718782125929,-322.0,0.00024186,35]
[329877405,1718782125953,-580.0,0.00024186,35]
[329877406,1718782125977,-429.0,0.00024186,35]
[329877407,1718782126003,-150.5,0.00024186,35]
[329877408,1718782126027,-150.5,0.00024186,35]
[329877409,1718782126052,-207.0,0.00024186,35]
[329877410,1718782126076,-491.0,0.00024186,35]
[329877411,1718782126100,-322.0,0.00024187,35]
[329877412,1718782126125,-580.0,0.00024187,35]
[329877413,1718782126148,-207.0,0.00024187,35]
[329877414,1718782126173,-150.5,0.00024187,35]
[329877415,1718782126197,-157.49,0.00024187,35]
[329877416,1718782126220,-162.57,0.00024187,35]
[329877417,1718782126243,-491.0,0.00024187,35]
[329877418,1718782126267,-150.5,0.00024187,35]
[329877419,1718782126290,-429.0,0.00024187,35]
[329877420,1718782126313,-290.0,0.00024187,35]
[329877421,1718782126335,-322.0,0.00024196,35]
[329877422,1718782126358,-429.0,0.00024196,35]
[329877423,1718782126382,-580.0,0.00024196,35]
[329877424,1718782126406,-150.5,0.00024196,35]
[329877425,1718782126435,-150.5,0.00024196,35]
[329877426,1718782126460,-207.0,0.00024196,35]
[329877427,1718782126484,-491.0,0.00024196,35]
[329877428,1718782126507,-207.0,0.00024197,35]
[329877429,1718782126531,-322.0,0.00024197,35]
[329877430,1718782126554,-580.0,0.00024197,35]
[329877431,1718782126582,-150.5,0.00024197,35]
[329877432,1718782126606,-150.5,0.00024197,35]
[329877433,1718782126629,-150.5,0.00024197,35]
[329877434,1718782126653,-491.0,0.00024197,35]
[329877435,1718782126680,-150.5,0.00024197,35]
[329877436,1718782126703,-429.0,0.00024197,35]
[329877437,1718782126727,-322.0,0.00024206,35]
[329877438,1718782126751,-429.0,0.00024206,35]
[329877439,1718782126774,-580.0,0.00024206,35]
[329877440,1718782126798,-150.5,0.00024206,35]
[329877441,1718782126822,-150.5,0.00024206,35]
[329877442,1718782126846,-207.0,0.00024206,35]
[329877443,1718782126870,-491.0,0.00024206,35]
[329877444,1718782126894,-207.0,0.00024207,35]
[329877445,1718782126921,-580.0,0.00024207,35]
[329877446,1718782126950,-150.5,0.00024207,35]
[329877447,1718782126975,-322.0,0.00024207,35]
[329877448,1718782126999,-150.5,0.00024207,35]
[329877449,1718782127027,-491.0,0.00024207,35]
[329877450,1718782127051,-150.5,0.00024207,35]
[329877451,1718782127075,-150.5,0.00024207,35]
[329877452,1718782127100,-429.0,0.00024207,35]
[329877453,1718782127124,-2744041.98856122,0.00024217,30]
[329877454,1718782127147,-3200.7454,0.00024535,30]
[329877455,1718782127176,-3027.0,0.00024628,35]
[329877456,1718782127200,-682.0,0.00024628,35]
[329877457,1718782127226,-3027.0,0.00024638,35]
[329877458,1718782127250,-682.0,0.00024638,35]
[329877459,1718782127276,-3027.0,0.00024648,35]
[329877460,1718782127301,-682.0,0.00024648,35]
[329877461,1718782127329,-714.50558833,0.00025,30]
[329877462,1718782127355,-1206.43163887,0.00025169,30]
[329877463,1718782127386,-273.46,0.000264,31]
[329877464,1718782127412,-273.46,0.000264,31]
[329877465,1718782127435,-273.46,0.000264,31]
[329877466,1718782127460,-273.46,0.000264,31]
[329877467,1718782127485,-273.46,0.000264,31]
[329877468,1718782127509,-273.46,0.000264,31]
[329877469,1718782127536,-273.46,0.000264,31]
[329877470,1718782127560,-273.46,0.000264,31]
[329877471,1718782127584,-273.46,0.000264,31]
[329877472,1718782127610,-273.46,0.000264,31]
[329877473,1718782127635,-273.46,0.000264,31]
[329877474,1718782127663,-273.46,0.000264,31]
[329877475,1718782127790,-273.46,0.000264,31]
[329877476,1718782127816,-273.46,0.000264,31]
[329877477,1718782127842,-273.46,0.000264,31]
[329877478,1718782127867,-273.46,0.000264,31]
[329877479,1718782127891,-273.46,0.000264,31]
[329877480,1718782127918,-273.46,0.000264,31]
[329877481,1718782127946,-273.46,0.000264,31]
[329877482,1718782127971,-273.46,0.000264,31]
[329877483,1718782127996,-273.46,0.000264,31]
[329877484,1718782128020,-273.46,0.000264,31]
[329877485,1718782128045,-273.46,0.000264,31]
[329877486,1718782128071,-273.46,0.000264,31]
[329877487,1718782128095,-273.46,0.000264,31]
[329877488,1718782128134,-273.46,0.000264,31]
[329877489,1718782128162,-273.46,0.000264,31]
[329877490,1718782128189,-273.46,0.000264,31]
[329877491,1718782128215,-273.46,0.000264,31]
[329877492,1718782128242,-273.46,0.000264,31]
[329877493,1718782128269,-273.46,0.000264,31]
[329877494,1718782128296,-273.46,0.000264,31]
[329877495,1718782128323,-273.46,0.000264,31]
[329877496,1718782128347,-273.46,0.000264,31]
[329877497,1718782128371,-273.46,0.000264,31]
[329877498,1718782128396,-273.46,0.000264,31]
[329877499,1718782128424,-273.46,0.000264,31]
[329877500,1718782128449,-273.46,0.000264,31]
[329877501,1718782128474,-273.46,0.000264,31]
[329877502,1718782128500,-273.46,0.000264,31]
[329877503,1718782128528,-273.46,0.000265,31]
[329877504,1718782128553,-273.46,0.000265,31]
[329877505,1718782128580,-273.46,0.000265,31]
[329877506,1718782128607,-273.46,0.000265,31]
[329877507,1718782128633,-273.46,0.000265,31]
[329877508,1718782128660,-273.46,0.000265,31]
[329877509,1718782128684,-273.46,0.000265,31]
[329877510,1718782128710,-273.46,0.000265,31]
[329877511,1718782128736,-273.46,0.000265,31]
[329877512,1718782128762,-273.46,0.000265,31]
[329877513,1718782128788,-273.46,0.000265,31]
[329877514,1718782128814,-273.46,0.000265,31]
[329877515,1718782128840,-273.46,0.000265,31]
[329877516,1718782128866,-273.46,0.000265,31]
[329877517,1718782128891,-273.46,0.000265,31]
[329877518,1718782128919,-273.46,0.000265,31]
[329877519,1718782128948,-273.46,0.000265,31]
[329877520,1718782128973,-273.46,0.000265,31]
[329877521,1718782129000,-273.46,0.000265,31]
[329877522,1718782129026,-273.46,0.000265,31]
[329877523,1718782129051,-273.46,0.000265,31]
[329877524,1718782129075,-273.46,0.000265,31]
[329877525,1718782129110,-273.46,0.000265,31]
[329877526,1718782129147,-273.46,0.000265,31]
[329877527,1718782129182,-273.46,0.000265,31]
[329877528,1718782129215,-273.46,0.000265,31]
[329877529,1718782129247,-273.46,0.000265,31]
[329877530,1718782129280,-273.46,0.000265,31]
[329877531,1718782129312,-273.46,0.000265,31]
[329877532,1718782129346,-273.46,0.000265,31]
[329877533,1718782129380,-273.46,0.000265,31]
[329877534,1718782129414,-273.46,0.000265,31]
[329877535,1718782129446,-273.46,0.000265,31]
[329877536,1718782129478,-273.46,0.000265,31]
[329877537,1718782129510,-273.46,0.000265,31]
[329877538,1718782129541,-273.46,0.000265,31]
[329877539,1718782129569,-273.46,0.000265,31]
[329877540,1718782129599,-273.46,0.000265,31]
[329877541,1718782129628,-273.46,0.000265,31]
[329877542,1718782129660,-273.46,0.000265,31]
[329877543,1718782129692,-228.5204,0.00026535,30]
[329877544,1718782129725,-273.46,0.000266,31]
[329877545,1718782129758,-273.46,0.000266,31]
[329877546,1718782129791,-273.46,0.000266,31]
[329877547,1718782129819,-273.46,0.000266,31]
[329877548,1718782129848,-273.46,0.000266,31]
[329877549,1718782129878,-273.46,0.000266,31]
[329877550,1718782129913,-273.46,0.000266,31]
[329877551,1718782129950,-273.46,0.000266,31]
[329877552,1718782129979,-273.46,0.000266,31]
[329877553,1718782130012,-273.46,0.000266,31]
[329877554,1718782130044,-273.46,0.000266,31]
[329877555,1718782130074,-273.46,0.000266,31]
[329877556,1718782130103,-273.46,0.000266,31]
[329877557,1718782130132,-273.46,0.000266,31]
[329877558,1718782130163,-273.46,0.000266,31]
[329877559,1718782130194,-273.46,0.000266,31]
[329877560,1718782130224,-273.46,0.000266,31]
[329877561,1718782130258,-273.46,0.000266,31]
[329877562,1718782130286,-273.46,0.000266,31]
[329877563,1718782130314,-273.46,0.000266,31]
[329877564,1718782130347,-1073.46,0.00027,30]
[329877565,1718782130376,-500.0,0.00027397,30]
[329877566,1718782130403,-500.0,0.00027397,30]
[329877567,1718782130432,-500.0,0.00027397,30]
[329877568,1718782130459,-500.0,0.00027397,30]
[329877569,1718782130486,-500.0,0.00027397,30]
[329877570,1718782130515,-500.0,0.00027397,30]
[329877571,1718782130543,-500.0,0.00027397,30]
[329877572,1718782130572,-500.0,0.00027397,30]
[329877573,1718782130736,-500.0,0.00027397,30]
[329877574,1718782130764,-500.0,0.00027397,30]
[329877575,1718782130788,-500.0,0.00027397,30]
[329877576,1718782130813,-500.0,0.00027397,30]
[329877577,1718782130838,-500.0,0.00027397,30]
[329877578,1718782130864,-500.0,0.00027397,30]
[329877579,1718782130887,-500.0,0.00027397,30]
[329877580,1718782130911,-500.0,0.00027397,30]
[329877581,1718782130941,-500.0,0.00027397,30]
[329877582,1718782130966,-576.33004226,0.00027397,30]
[329877583,1718782130990,-400.0,0.00027397,60]
[329877584,1718782131016,-1606.889045,0.00027397,120]
[329877585,1718782131042,-411.48308863,0.000275,30]
[329877586,1718782131070,-3027.0,0.0002797,35]
[329877587,1718782131095,-682.0,0.0002797,35]
[329877588,1718782131118,-290.0,0.0002797,35]
[329877589,1718782131142,-3027.0,0.0002798,35]
[329877590,1718782131166,-682.0,0.0002798,35]
[329877591,1718782131189,-290.0,0.0002798,35]
[329877592,1718782131213,-3027.0,0.0002799,35]
[329877593,1718782131236,-682.0,0.0002799,35]
[329877594,1718782131260,-290.0,0.0002799,35]
[329877595,1718782131283,-2001.57283198,0.00028,120]
[329877596,1718782131313,-356.58172503,0.0002892,30]
[329877597,1718782131337,-3013.0,0.00029,60]
[329877598,1718782131361,-12148.23549804,0.00029,30]
[329877599,1718782131385,-466.85630812,0.0003,30]
[329877600,1718782131408,-863.6,0.0003,120]
[329877601,1718782131432,-202.17233672,0.0003,30]
[329877602,1718782131455,-361.24469914,0.0003,120]
[329877603,1718782131478,-1147.94,0.00030136,120]
[329877604,1718782131502,-1147.94,0.00030136,120]
[329877605,1718782131525,-1147.94,0.00030136,120]
[329877606,1718782131550,-1147.94,0.00030136,120]
[329877607,1718782131576,-1147.94,0.00030136,120]
[329877608,1718782131599,-1147.94,0.00030136,120]
[329877609,1718782131622,-1147.94,0.00030136,120]
[329877610,1718782131645,-1147.94,0.00030136,120]
[329877611,1718782131670,-1147.94,0.00030136,120]
[329877612,1718782131694,-1147.94,0.00030136,120]
[329877613,1718782131718,-1147.94,0.00030136,120]
[329877614,1718782131741,-1147.94,0.00030136,120]
[329877615,1718782131764,-1147.94,0.00030136,120]
[329877616,1718782131789,-1147.94,0.00030136,120]
[329877617,1718782131814,-1147.94,0.00030136,120]
[329877618,1718782131838,-1147.94,0.00030136,120]
[329877619,1718782131863,-1147.94,0.00030136,120]
[329877620,1718782131888,-1147.94,0.00030136,120]
[329877621,1718782131913,-1147.94,0.00030136,120]
[329877622,1718782131944,-1147.94,0.00030136,120]
[329877623,1718782131970,-1147.94,0.00030136,120]
[329877624,1718782131998,-1147.94,0.00030136,120]
[329877625,1718782132026,-1147.94,0.00030136,120]
[329877626,1718782132052,-1148.16078882,0.00030136,120]
[329877627,1718782132077,-400.0,0.00030137,60]
[329877628,1718782132105,-2412.86327774,0.00030487,120]
[329877629,1718782132130,-4273.6410009,0.00031233,30]
[329877630,1718782132154,-1297.3,0.00031947,32]
[329877631,1718782132181,-1606.889045,0.00031963,120]
[329877632,1718782132204,-306.0,0.00032,120]
[329877633,1718782132228,-7642.74018424,0.00032,30]
[329877634,1718782132252,-1000.0,0.00032,30]
[329877635,1718782132275,-12233.37504648,0.000325,60]
[329877636,1718782132302,-400.0,0.00032877,60]
[329877637,1718782132327,-220.0,0.00034,120]
[329877638,1718782132351,-322.0,0.0003478,35]
[329877639,1718782132375,-580.0,0.0003478,35]
[329877640,1718782132399,-150.5,0.0003478,35]
[329877641,1718782132423,-150.5,0.0003478,35]
[329877642,1718782132446,-429.0,0.0003478,35]
[329877643,1718782132469,-207.0,0.0003478,35]
[329877644,1718782132494,-491.0,0.0003478,35]
[329877645,1718782132520,-322.0,0.0003479,35]
[329877646,1718782132546,-580.0,0.0003479,35]
[329877647,1718782132571,-429.0,0.0003479,35]
[329877648,1718782132596,-150.5,0.0003479,35]
[329877649,1718782132621,-150.5,0.0003479,35]
[329877650,1718782132645,-207.0,0.0003479,35]
[329877651,1718782132672,-491.0,0.0003479,35]
[329877652,1718782132697,-451.62,0.000348,30]
[329877653,1718782132724,-531.03961011,0.00035,120]
[329877654,1718782132748,-768.53353351,0.00035,120]
[329877655,1718782132773,-255.0,0.000355,120]
[329877656,1718782132798,-400.0,0.00035616,60]
[329877657,1718782132822,-4273.6410009,0.00036233,30]
[329877658,1718782132848,-1606.889045,0.0003653,120]
[329877659,1718782132872,-16093.52564036,0.000366,30]
[329877660,1718782132897,-1108.51987842,0.0003707,31]
[329877661,1718782132925,-1195.49908062,0.00037898,34]
[329877662,1718782132949,-5000.0,0.000379,60]
[329877663,1718782132972,-2652.18549853,0.00038,120]
[329877664,1718782133000,-400.0,0.00038,120]
[329877665,1718782133024,-768.53353351,0.00038,120]
[329877666,1718782133048,-362.95733406,0.00038,30]
[329877667,1718782133072,-10000.0,0.00038,50]
[329877668,1718782133095,-400.0,0.00038356,60]
[329877669,1718782133120,-200.0,0.00038867,120]
[329877670,1718782133145,-1477.53553435,0.0003888,120]
[329877671,1718782133173,-1000.0,0.00039,39]
[329877672,1718782133198,-4757.02907057,0.00039484,120]
[329877673,1718782133225,-3027.0,0.0003988,35]
[329877674,1718782133344,-682.0,0.0003988,35]
[329877675,1718782133369,-290.0,0.0003988,35]
[329877676,1718782133395,-3027.0,0.0003989,35]
[329877677,1718782133422,-682.0,0.0003989,35]
[329877678,1718782133446,-290.0,0.0003989,35]
[329877679,1718782133470,-814.29805521,0.000399,108]
[329877680,1718782133496,-848.7409145,0.0004,30]
[329877681,1718782133520,-2022.0,0.0004,30]
[329877682,1718782133545,-312.77371478,0.0004,120]
[329877683,1718782133570,-151.0,0.0004,120]
[329877684,1718782133594,-151.0,0.0004,120]
[329877685,1718782133621,-347.74070824,0.0004,120]
[329877686,1718782133646,-4893.84508422,0.0004,60]
[329877687,1718782133672,-1000.0,0.0004,120]
[329877688,1718782133696,-1227.34726132,0.0004,120]
[329877689,1718782133721,-999.0,0.00040164,30]
[329877690,1718782133745,-999.0,0.00040164,30]
[329877691,1718782133770,-999.0,0.00040164,30]
[329877692,1718782133794,-999.0,0.00040164,30]
[329877693,1718782133818,-999.0,0.00040164,30]
[329877694,1718782133844,-999.0,0.00040164,30]
[329877695,1718782133867,-999.0,0.00040164,30]
[329877696,1718782133892,-999.0,0.00040164,30]
[329877697,1718782133918,-999.0,0.00040164,30]
[329877698,1718782133942,-1035.53824076,0.00040164,30]
[329877699,1718782133967,-151.0,0.00040685,120]
[329877700,1718782133989,-4733.94075451,0.00041,60]